fUSD/lending_fUSD_20260526
["ID","MTS","AMOUNT","RATE_DAILY","PERIOD"]
[422999445,1779733838000,-263.27801782,0.00014898,2]
[422999451,1779733838000,-500.0,0.00014898,2]
[422999448,1779733838000,-500.0,0.00014898,2]
[422999444,1779733838000,-282.51977631,0.000147,2]
[422999447,1779733838000,-437.79776353,0.00014898,2]
[422999449,1779733838000,-500.0,0.00014898,2]
[422999446,1779733838000,-158.76194429,0.00014898,2]
[422999450,1779733838000,-500.0,0.00014898,2]
[422999452,1779733838000,-166.78295401,0.00014898,2]
[422999454,1779733838000,-468.11649804,0.00014898,2]
[422999455,1779733838000,-10489.92971799,0.00014899,2]
[422999453,1779733838000,-333.21704599,0.00014898,2]
[422999541,1779733841000,-189.85348246,0.00014899,2]
[422999540,1779733841000,-188.34651754,0.000147,2]
[422999551,1779733843000,-39813.13772422,0.00014899,2]
[422999550,1779733843000,-13582.93701862,0.00014899,2]
[422999552,1779733844000,-430.54649741,0.00014899,2]
[422999577,1779734460000,249.95371464,0.0001,2]
[422999581,1779734664000,160.48,6.748e-05,2]
[422999583,1779734940000,1000.0,0.00028079,120]
[422999611,1779735034000,-166.66,0.00013699,2]
[422999613,1779735034000,-2316.0,0.0001372,2]
[422999610,1779735034000,-1942.43,0.0001365,2]
[422999612,1779735034000,-200.0,0.00013699,2]
[422999609,1779735034000,-384.0,0.00013536,2]
[422999608,1779735034000,-244.85307008,0.00013509,2]
[422999607,1779735034000,-160.48,0.00013496,2]
[422999605,1779735034000,-150.0,0.00013488,2]
[422999606,1779735034000,-150.0,0.00013488,2]
[422999601,1779735034000,-500.0,0.0001348,2]
[422999604,1779735034000,-150.0,0.00013488,2]
[422999652,1779735034000,-151.66542978,0.00014524,2]
[422999602,1779735034000,-150.0,0.00013488,2]
[422999599,1779735034000,-160.0,0.00013403,2]
[422999600,1779735034000,-215.38528485,0.00013403,2]
[422999598,1779735034000,-1589.0,0.000134,2]
[422999596,1779735034000,-1589.0,0.000134,2]
[422999595,1779735034000,-1200.0,0.00013399,2]
[422999597,1779735034000,-1589.0,0.000134,2]
[422999593,1779735034000,-633.88,0.00013394,2]
[422999594,1779735034000,-300.0,0.00013399,2]
[422999591,1779735034000,-500.0,0.00013356,2]
[422999592,1779735034000,-600.0,0.00013356,2]
[422999614,1779735034000,-166.66,0.00013793,2]
[422999603,1779735034000,-150.0,0.00013488,2]
[422999618,1779735034000,-1195.04,0.00013887,2]
[422999616,1779735034000,-384.0,0.00013874,2]
[422999653,1779735034000,-16483.19809259,0.00014525,2]
[422999651,1779735034000,-329.790722,0.00014524,2]
[422999649,1779735034000,-184.29461247,0.00014524,2]
[422999645,1779735034000,-166.66,0.00014503,2]
[422999647,1779735034000,-306.45843447,0.00014524,2]
[422999633,1779735034000,-166.66,0.00014181,2]
[422999636,1779735034000,-384.0,0.00014212,2]
[422999643,1779735034000,-166.66,0.0001442,2]
[422999631,1779735034000,-150.0,0.00014181,2]
[422999638,1779735034000,-166.66,0.00014342,2]
[422999619,1779735034000,-3257.9978,0.0001392,2]
[422999629,1779735034000,-3365.49,0.00014052,2]
[422999627,1779735034000,-2316.0,0.0001404,2]
[422999625,1779735034000,-1589.0,0.0001404,2]
[422999626,1779735034000,-1589.0,0.0001404,2]
[422999624,1779735034000,-163.0,0.0001404,2]
[422999623,1779735034000,-166.66,0.0001402,2]
[422999615,1779735034000,-166.66,0.00013859,2]
[422999617,1779735034000,-5573.0,0.00013886,2]
[422999622,1779735034000,-250.0,0.00014,2]
[422999621,1779735034000,-5088.0,0.00013972,2]
[422999620,1779735034000,-3892.0,0.0001395,2]
[422999640,1779735034000,-1587.0,0.0001436,2]
[422999662,1779735037000,-12513.9207347,0.00014525,2]
[422999663,1779735037000,-766.39805676,0.00014525,2]
[422999664,1779735037000,-3159.23901097,0.00014525,2]
[422999692,1779735040000,-728.01619053,0.00014525,2]
[422999717,1779735045000,-1863.47082726,0.00014525,2]
[422999718,1779735045000,-399.48050875,0.00014525,2]
[422999716,1779735045000,-910.07126,0.00014525,2]
[422999715,1779735045000,-3657.04839709,0.00014525,2]
[422999714,1779735045000,-440.08527298,0.00014525,2]
[422999713,1779735045000,-369.80954041,0.00014525,2]
[422999726,1779735046000,-8894.78465996,0.00014525,2]
[422999724,1779735046000,-309.21362156,0.00014525,2]
[422999725,1779735046000,-427.82499963,0.00014525,2]
[422999720,1779735046000,-488128.44860669,0.00014525,2]
[422999723,1779735046000,-7707.56850554,0.00014525,2]
[422999721,1779735046000,-314.55,0.00014525,2]
[422999719,1779735046000,-310.546,0.00014525,2]
[422999722,1779735046000,-69366.16289855,0.00014525,2]
[422999733,1779735413000,157.81,6.61e-05,2]
[422999734,1779735414000,157.81,9.915e-05,2]
[422999737,1779735602000,620.28170817,0.0001,2]
[422999736,1779735602000,3284.99829183,0.0001,2]
[422999738,1779735731000,200.0,0.00028082,120]
[422999740,1779736140000,1000.0,0.00028081,120]
[422999765,1779736231000,-511.42,0.00013329,2]
[422999762,1779736231000,-157.81,0.0001322,2]
[422999764,1779736231000,-6217.28170191,0.00013293,2]
[422999761,1779736231000,-253.75,0.00013135,2]
[422999759,1779736231000,-511.42,0.00013004,2]
[422999751,1779736231000,-150.0,0.00012786,2]
[422999758,1779736231000,-1040.0,0.00013003,2]
[422999755,1779736231000,-150.0,0.00012912,2]
[422999757,1779736231000,-556.73,0.00012988,2]
[422999745,1779736231000,-4852.062308,0.00012453,2]
[422999752,1779736231000,-300.0,0.00012902,2]
[422999753,1779736231000,-300.0,0.00012902,2]
[422999754,1779736231000,-1909.15,0.00012903,2]
[422999750,1779736231000,-274.17,0.00012657,2]
[422999747,1779736231000,-1200.0,0.00012552,2]
[422999749,1779736231000,-163.49,0.00012657,2]
[422999746,1779736231000,-3422.45705636,0.00012516,2]
[422999748,1779736231000,-150.0,0.00012617,2]
[422999769,1779736231000,-215.38528485,0.000134,2]
[422999760,1779736231000,-242.0,0.00013039,2]
[422999767,1779736231000,-500.0,0.00013356,2]
[422999756,1779736231000,-150.0,0.00012945,2]
[422999768,1779736231000,-500.0,0.00013356,2]
[422999766,1779736231000,-700.0,0.00013356,2]
[422999793,1779736231000,-600.0,0.00013904,2]
[422999789,1779736231000,-600.0,0.00013904,2]
[422999790,1779736231000,-600.0,0.00013904,2]
[422999787,1779736231000,-2500.0,0.00013904,2]
[422999788,1779736231000,-2500.0,0.00013904,2]
[422999782,1779736231000,-200.0,0.00013699,2]
[422999781,1779736231000,-511.42,0.00013654,2]
[422999777,1779736231000,-259.22,0.00013565,2]
[422999773,1779736231000,-150.0,0.00013488,2]
[422999791,1779736231000,-600.0,0.00013904,2]
[422999778,1779736231000,-173.91,0.00013631,2]
[422999784,1779736231000,-163.0,0.0001372,2]
[422999770,1779736231000,-163.0,0.000134,2]
[422999774,1779736231000,-150.0,0.00013488,2]
[422999772,1779736231000,-150.0,0.00013481,2]
[422999771,1779736231000,-166.75,0.00013411,2]
[422999775,1779736231000,-150.0,0.00013488,2]
[422999786,1779736231000,-166.66,0.00013836,2]
[422999785,1779736231000,-1680.0,0.00013807,2]
[422999783,1779736231000,-166.66,0.00013699,2]
[422999763,1779736231000,-208.87966228,0.00013291,2]
[422999834,1779736232000,-166.66,0.0001411,2]
[422999851,1779736232000,-500.0,0.0001415,2]
[422999836,1779736232000,-243.53948759,0.00014147,2]
[422999838,1779736232000,-166.6644467,0.00014147,2]
[422999840,1779736232000,-150.0,0.0001415,2]
[422999845,1779736232000,-150.0,0.0001415,2]
[422999843,1779736232000,-150.0,0.0001415,2]
[422999856,1779736232000,-500.0,0.0001415,2]
[422999849,1779736232000,-500.0,0.0001415,2]
[422999854,1779736232000,-500.0,0.0001415,2]
[422999864,1779736232000,-247.48052146,0.0001415,2]
[422999860,1779736232000,-500.0,0.0001415,2]
[422999859,1779736232000,-500.0,0.0001415,2]
[422999855,1779736232000,-500.0,0.0001415,2]
[422999832,1779736232000,-250.0,0.00014,2]
[422999847,1779736232000,-197.0,0.0001415,2]
[422999818,1779736232000,-511.42,0.00013979,2]
[422999810,1779736232000,-300.0,0.00013974,2]
[422999830,1779736232000,-577.41851285,0.00013988,2]
[422999863,1779736232000,-500.0,0.0001415,2]
[422999799,1779736232000,-166.66,0.00013973,2]
[422999801,1779736232000,-2500.0,0.00013974,2]
[422999804,1779736232000,-2500.0,0.00013974,2]
[422999806,1779736232000,-2500.0,0.00013974,2]
[422999797,1779736232000,-306.38588634,0.00013904,2]
[422999795,1779736232000,-423.56497206,0.00013904,2]
[422999812,1779736232000,-300.0,0.00013974,2]
[422999808,1779736232000,-300.0,0.00013974,2]
[422999822,1779736232000,-500.0,0.00013988,2]
[422999814,1779736232000,-300.0,0.00013974,2]
[422999824,1779736232000,-500.0,0.00013988,2]
[422999816,1779736232000,-500.0,0.00013975,2]
[422999820,1779736232000,-500.0,0.00013988,2]
[422999826,1779736232000,-500.0,0.00013988,2]
[422999828,1779736232000,-500.0,0.00013988,2]
[422999862,1779736232000,-500.0,0.0001415,2]
[422999898,1779736232000,-500.0,0.00014204,2]
[422999857,1779736232000,-500.0,0.0001415,2]
[422999883,1779736232000,-500.0,0.00014203,2]
[422999886,1779736232000,-225.79324049,0.00014203,2]
[422999880,1779736232000,-500.0,0.00014203,2]
[422999882,1779736232000,-500.0,0.00014203,2]
[422999888,1779736232000,-500.0,0.00014203,2]
[422999889,1779736232000,-500.0,0.00014203,2]
[422999884,1779736232000,-500.0,0.00014203,2]
[422999899,1779736232000,-23532.78900651,0.00014204,2]
[422999892,1779736232000,-500.0,0.00014203,2]
[422999895,1779736232000,-449.43431185,0.00014203,2]
[422999893,1779736232000,-500.0,0.00014203,2]
[422999894,1779736232000,-500.0,0.00014203,2]
[422999897,1779736232000,-150.0,0.00014204,2]
[422999896,1779736232000,-500.0,0.00014203,2]
[422999861,1779736232000,-500.0,0.0001415,2]
[422999885,1779736232000,-185.40806489,0.00014203,2]
[422999887,1779736232000,-500.0,0.00014203,2]
[422999890,1779736232000,-500.0,0.00014203,2]
[422999877,1779736232000,-351.11080756,0.00014203,2]
[422999866,1779736232000,-214.52090413,0.00014203,2]
[422999865,1779736232000,-420.0,0.00014151,2]
[422999873,1779736232000,-510.77677328,0.00014203,2]
[422999874,1779736232000,-500.0,0.00014203,2]
[422999876,1779736232000,-214.08473111,0.00014203,2]
[422999875,1779736232000,-500.0,0.00014203,2]
[422999881,1779736232000,-500.0,0.00014203,2]
[422999878,1779736232000,-500.0,0.00014203,2]
[422999879,1779736232000,-500.0,0.00014203,2]
[422999869,1779736232000,-315.00845878,0.00014203,2]
[422999868,1779736232000,-366.43413556,0.00014203,2]
[422999870,1779736232000,-500.0,0.00014203,2]
[422999871,1779736232000,-500.0,0.00014203,2]
[422999872,1779736232000,-500.0,0.00014203,2]
[422999891,1779736232000,-500.0,0.00014203,2]
[422999867,1779736232000,-480.31542289,0.00014203,2]
[422999858,1779736232000,-500.0,0.0001415,2]
[422999903,1779736233000,-1254.41808677,0.00014204,2]
[422999900,1779736233000,-161840.38781229,0.00014204,2]
[422999902,1779736233000,-355820.7634527,0.00014204,2]
[422999901,1779736233000,-253855.88862104,0.00014204,2]
[422999905,1779736233000,-2300.0,0.00014204,2]
[422999904,1779736233000,-10922.85012,0.00014204,2]
[422999906,1779736233000,-304.13777494,0.00014204,2]
[422999908,1779736238000,-337.69617652,0.00014204,2]
[423000159,1779736240000,-1875.14979928,0.00014204,2]
[423000157,1779736240000,-35274.85020072,0.00014204,2]
[423000147,1779736240000,-2280.22741019,0.00014204,2]
[423000145,1779736240000,-431.99258981,0.00014147,2]
[423000533,1779736243000,-77550.0,0.00014204,2]
[423000535,1779736243000,-785.92833802,0.00014204,2]
[423000847,1779736245000,-522.52533801,0.00014204,2]
[423000933,1779736246000,-280.18644978,0.00014204,2]
[423000917,1779736246000,-124239.26335863,0.00014204,2]
[423001127,1779737084000,-150.0,0.00012935,2]
[423001126,1779737084000,-742.28,0.00012863,2]
[423001130,1779737210000,-98.02281959,0.00013001,2]
[423001129,1779737210000,-250.6,0.00012971,2]
[423001131,1779737340000,1000.0,0.0002808,120]
[423001147,1779737433000,-208.87966228,0.00013394,2]
[423001149,1779737433000,-163.0,0.000134,2]
[423001148,1779737433000,-1589.0,0.000134,2]
[423001155,1779737433000,-200.0,0.00013699,2]
[423001151,1779737433000,-163.0,0.000134,2]
[423001152,1779737433000,-215.38528485,0.00013469,2]
[423001153,1779737433000,-742.28,0.00013506,2]
[423001146,1779737433000,-300.0,0.00013387,2]
[423001160,1779737433000,-166.66,0.00013726,2]
[423001143,1779737433000,-500.0,0.00013356,2]
[423001135,1779737433000,-121.37260974,0.00013173,2]
[423001139,1779737433000,-742.28,0.00013184,2]
[423001141,1779737433000,-161.83,0.00013207,2]
[423001137,1779737433000,-205.94739026,0.00013173,2]
[423001142,1779737433000,-1200.0,0.00013355,2]
[423001145,1779737433000,-500.0,0.00013356,2]
[423001144,1779737433000,-700.0,0.00013356,2]
[423001138,1779737433000,-398.26,0.00013181,2]
[423001136,1779737433000,-1200.0,0.00013173,2]
[423001133,1779737433000,-447.44718041,0.00013001,2]
[423001134,1779737433000,-172.73,0.0001307,2]
[423001140,1779737433000,-160.0,0.00013192,2]
[423001157,1779737433000,-2316.0,0.0001372,2]
[423001181,1779737433000,-500.0,0.00013988,2]
[423001154,1779737433000,-166.66,0.00013699,2]
[423001209,1779737433000,-817.81950348,0.00014004,2]
[423001207,1779737433000,-406.91687512,0.00014003,2]
[423001198,1779737433000,-329.66008202,0.00014003,2]
[423001205,1779737433000,-500.0,0.00014003,2]
[423001203,1779737433000,-500.0,0.00014003,2]
[423001196,1779737433000,-150.16463289,0.00014003,2]
[423001201,1779737433000,-500.0,0.00014003,2]
[423001186,1779737433000,-500.0,0.00013988,2]
[423001192,1779737433000,-150.0,0.00014003,2]
[423001188,1779737433000,-500.0,0.00013988,2]
[423001194,1779737433000,-165.83436637,0.00014003,2]
[423001183,1779737433000,-500.0,0.00013988,2]
[423001162,1779737433000,-742.28,0.00013827,2]
[423001190,1779737433000,-150.0,0.00013988,2]
[423001175,1779737433000,-405.71966649,0.0001394,2]
[423001179,1779737433000,-166.66,0.00013973,2]
[423001177,1779737433000,-694.94486163,0.00013964,2]
[423001172,1779737433000,-853.66817684,0.0001394,2]
[423001168,1779737433000,-213.09705165,0.0001394,2]
[423001166,1779737433000,-166.66444666,0.0001391,2]
[423001170,1779737433000,-197.72717822,0.0001394,2]
[423001164,1779737433000,-166.66,0.00013836,2]
[423001150,1779737433000,-2316.0,0.000134,2]
[423001226,1779737438000,-4895.81950348,0.00014004,2]
[423001228,1779737438000,-2438.15312271,0.00014004,2]
[423001227,1779737438000,-1131.52677623,0.00014004,2]
[423001225,1779737438000,-1182.18049652,0.00014004,2]
[423001239,1779737440000,-6890.61843035,0.00014004,2]
[423001238,1779737440000,-389.19253552,0.00014004,2]
[423001240,1779737440000,-10491.37210821,0.00014004,2]
[423001245,1779737440000,-31423.56469939,0.00014004,2]
[423001243,1779737440000,-4465.463,0.00014004,2]
[423001241,1779737440000,-1330.5473235,0.00014004,2]
[423001244,1779737440000,-2500.0,0.00014004,2]
[423001242,1779737440000,-5000.0,0.00014004,2]
[423001273,1779737443000,-5546.7199063,0.00014004,2]
[423001272,1779737443000,-2257.15440393,0.00014004,2]
[423001270,1779737443000,-704.34125377,0.00014004,2]
[423001271,1779737443000,-636070.69448661,0.00014004,2]
[423001269,1779737443000,-426.09573181,0.00014004,2]
[423001268,1779737443000,-373.45,0.00014004,2]
[423001294,1779737446000,-630.40607869,0.00014004,2]
[423001308,1779737949000,319.03,0.00012931,2]
[423001309,1779738071000,236.5,0.00012903,2]
[423001317,1779738540000,1000.0,0.00028079,120]
[423001349,1779738632000,-215.38528485,0.00013402,2]
[423001352,1779738632000,-150.0,0.00013607,2]
[423001345,1779738632000,-500.0,0.00013356,2]
[423001348,1779738632000,-163.0,0.000134,2]
[423001346,1779738632000,-300.0,0.00013398,2]
[423001347,1779738632000,-208.87966228,0.00013399,2]
[423001342,1779738632000,-1200.0,0.00013355,2]
[423001335,1779738632000,-439.88770221,0.00012935,2]
[423001343,1779738632000,-347.75736117,0.00013356,2]
[423001340,1779738632000,-150.0,0.00013017,2]
[423001337,1779738632000,-230.62683816,0.00012935,2]
[423001339,1779738632000,-212.46,0.00012998,2]
[423001338,1779738632000,-1621.85,0.00012946,2]
[423001336,1779738632000,-194.23612824,0.00012935,2]
[423001351,1779738632000,-166.284,0.00013607,2]
[423001341,1779738632000,-212.46,0.00013323,2]
[423001350,1779738632000,-2036.739,0.00013607,2]
[423001344,1779738632000,-700.0,0.00013356,2]
[423001355,1779738632000,-500.0,0.00013644,2]
[423001367,1779738632000,-500.0,0.00013803,2]
[423001370,1779738632000,-5000.0,0.00013804,2]
[423001369,1779738632000,-296.41166449,0.00013803,2]
[423001368,1779738632000,-500.0,0.00013803,2]
[423001363,1779738632000,-500.0,0.00013803,2]
[423001365,1779738632000,-211.87965279,0.00013803,2]
[423001361,1779738632000,-1725.0,0.00013753,2]
[423001366,1779738632000,-500.0,0.00013803,2]
[423001353,1779738632000,-1155.53,0.00013608,2]
[423001362,1779738632000,-150.0,0.00013803,2]
[423001364,1779738632000,-446.80292682,0.00013803,2]
[423001360,1779738632000,-784.82543567,0.00013736,2]
[423001358,1779738632000,-200.0,0.00013699,2]
[423001359,1779738632000,-166.45149169,0.00013704,2]
[423001354,1779738632000,-29480.87,0.00013608,2]
[423001357,1779738632000,-166.66,0.00013699,2]
[423001356,1779738632000,-212.46,0.00013648,2]
[423001371,1779738632000,-2983.1515392,0.00013804,2]
[423001548,1779738638000,-460.97870454,0.0001372,2]
[423001551,1779738638000,-378.81175529,0.00013804,2]
[423001550,1779738638000,-1151.41824471,0.0001372,2]
[423001549,1779738638000,-703.60305075,0.0001372,2]
[423001839,1779738640000,-499.17016566,0.00013804,2]
[423001792,1779738640000,-298.87099998,0.00013804,2]
[423002219,1779738643000,-1105.799808,0.00013804,2]
[423002216,1779738643000,-33767.02916895,0.00013804,2]
[423002168,1779738643000,-864.75066861,0.00013804,2]
[423002166,1779738643000,-1333.5,0.00013804,2]
[423002562,1779738646000,-776.78709948,0.00013804,2]
[423002533,1779738646000,-9825.8464763,0.00013804,2]
[423002525,1779738646000,-33296.50000005,0.00013804,2]
[423002958,1779738829000,2000.0,0.00012927,2]
[423002959,1779739011000,172.14,0.00012876,2]
[423002960,1779739084000,159.51,0.00012841,2]
[423002964,1779739193000,338.89,0.00012816,2]
[423002966,1779739389000,1942.43,0.00012803,2]
[423002967,1779739400000,200.0,0.00012714,2]
[423002969,1779739479000,322.30521939,0.00012666,2]
[423002970,1779739479000,562.6155016,0.00012666,2]
[423002977,1779739741000,1000.0,0.00028078,120]
[423002978,1779739787000,5000.0,0.00028082,120]
[423002995,1779739832000,-610.44814184,0.00012757,2]
[423002999,1779739832000,-2445.1958222,0.00012757,2]
[423002997,1779739832000,-1206.68205286,0.00012757,2]
[423002998,1779739832000,-819.1793169,0.00012757,2]
[423003003,1779739832000,-237.61553022,0.00012935,2]
[423003014,1779739832000,-215.38528485,0.00013399,2]
[423003004,1779739832000,-152.21,0.00012941,2]
[423003006,1779739832000,-160.0,0.0001297,2]
[423003007,1779739832000,-338.89,0.00013136,2]
[423003009,1779739832000,-500.0,0.00013356,2]
[423003008,1779739832000,-166.66,0.00013244,2]
[423003005,1779739832000,-3365.49,0.00012953,2]
[423003012,1779739832000,-5013.0,0.00013391,2]
[423003002,1779739832000,-25264.59656486,0.00012757,2]
[423002996,1779739832000,-0.27645184,0.00012757,2]
[423003000,1779739832000,-392.70594018,0.00012757,2]
[423002993,1779739832000,-300.0,0.00012756,2]
[423002994,1779739832000,-473.31540632,0.00012757,2]
[423002990,1779739832000,-57.01033091,0.00012756,2]
[423002991,1779739832000,-269.83766909,0.00012756,2]
[423002988,1779739832000,-60.08346592,0.00012756,2]
[423002992,1779739832000,-930.16233091,0.00012756,2]
[423002987,1779739832000,-89.91653408,0.00012756,2]
[423002989,1779739832000,-242.98966909,0.00012756,2]
[423002985,1779739832000,-87.56418691,0.00012546,2]
[423002986,1779739832000,-103.23927901,0.00012666,2]
[423002984,1779739832000,-1912.43581309,0.00012546,2]
[423002982,1779739832000,-305.87152824,0.00012542,2]
[423002983,1779739832000,-90.82847176,0.00012542,2]
[423003010,1779739832000,-600.0,0.00013356,2]
[423003001,1779739832000,-1306.980303,0.00012757,2]
[423003018,1779739832000,-208.87966228,0.00013402,2]
[423003016,1779739832000,-1589.0,0.000134,2]
[423003030,1779739832000,-150.0,0.00013488,2]
[423003046,1779739832000,-184.29461247,0.00013603,2]
[423003058,1779739832000,-500.0,0.00013603,2]
[423003060,1779739832000,-500.0,0.00013603,2]
[423003062,1779739832000,-500.0,0.00013603,2]
[423003072,1779739832000,-2000.0,0.00013604,2]
[423003068,1779739832000,-469.0,0.00013604,5]
[423003056,1779739832000,-500.0,0.00013603,2]
[423003064,1779739832000,-500.0,0.00013603,2]
[423003070,1779739832000,-150.0,0.00013604,2]
[423003074,1779739832000,-32428.9137,0.00013604,2]
[423003076,1779739832000,-113051.01298823,0.00013604,2]
[423003083,1779739832000,-818.79,0.00013604,2]
[423003079,1779739832000,-551.21250411,0.00013604,2]
[423003020,1779739832000,-500.0,0.00013425,2]
[423003066,1779739832000,-500.0,0.00013603,2]
[423003044,1779739832000,-166.28438011,0.00013603,2]
[423003048,1779739832000,-197.05277336,0.00013603,2]
[423003052,1779739832000,-255.15685161,0.00013603,2]
[423003026,1779739832000,-150.0,0.00013488,2]
[423003032,1779739832000,-2500.0,0.00013504,2]
[423003024,1779739832000,-338.89,0.00013457,2]
[423003031,1779739832000,-150.0,0.00013488,2]
[423003054,1779739832000,-630.39296047,0.00013603,2]
[423003036,1779739832000,-155.14692992,0.0001357,2]
[423003029,1779739832000,-150.0,0.00013488,2]
[423003038,1779739832000,-165.94039965,0.00013572,2]
[423003028,1779739832000,-150.0,0.00013488,2]
[423003022,1779739832000,-9540.0,0.0001345,2]
[423003081,1779739832000,-367.5852002,0.00013604,2]
[423003040,1779739832000,-218.76417585,0.00013572,2]
[423003042,1779739832000,-1629.391,0.00013603,2]
[423003050,1779739832000,-151.66542978,0.00013603,2]
[423003034,1779739832000,-5000.0,0.00013504,2]
[423003113,1779739838000,-64984.63702045,0.00013604,2]
[423003111,1779739838000,-5000.0,0.00013504,2]
[423003150,1779739841000,-1000.0,0.00013698,2]
[423003146,1779739841000,-1000.0,0.00013698,2]
[423003147,1779739841000,-1000.0,0.00013698,2]
[423003144,1779739841000,-1320226.76228701,0.00013604,2]
[423003148,1779739841000,-1000.0,0.00013698,2]
[423003149,1779739841000,-1000.0,0.00013698,2]
[423003145,1779739841000,-1000.0,0.00013698,2]
[423003153,1779739841000,-166.66,0.00013699,2]
[423003159,1779739841000,-123120.86287185,0.00013704,2]
[423003156,1779739841000,-200.0,0.000137,5]
[423003157,1779739841000,-511.17165135,0.00013704,2]
[423003155,1779739841000,-500.0,0.000137,5]
[423003154,1779739841000,-329.790722,0.00013699,2]
[423003151,1779739841000,-200.0,0.00013699,2]
[423003158,1779739841000,-1000.0,0.00013704,2]
[423003176,1779739843000,-14237.61553022,0.00013504,2]
[423003175,1779739843000,-689.83849042,0.00013504,2]
[423003174,1779739843000,-32412.83341636,0.00013504,2]
[423003173,1779739843000,-6.90982446,0.00013504,2]
[423003179,1779739846000,-605.53870129,0.00013504,2]
[423003178,1779739846000,-707.35993055,0.00013504,2]
[423003180,1779739846000,-1000.88383104,0.00013504,2]
[423003181,1779739846000,-2586.23792601,0.00013504,2]
[423003182,1779739846000,-1454.34702,0.00013504,2]
[423003184,1779739846000,-2008.6881515,0.00013504,2]
[423003185,1779739846000,-279.458431,0.00013504,2]
[423003187,1779739846000,-275.59399998,0.00013504,2]
[423003183,1779739846000,-845.0235,0.00013504,2]
[423003186,1779739846000,-1535.21737408,0.00013504,2]
[423003190,1779739847000,-8894.81553798,0.00013504,2]
[423003189,1779739847000,-17936.8350297,0.00013504,2]
[423003188,1779739847000,-11633.88023545,0.00013504,2]
[423003197,1779739977000,158.3,6.406e-05,2]
[423003213,1779740288000,156.0,7.944e-05,2]
[423003214,1779740289000,162.51969951,8.944e-05,2]
[423003220,1779740790000,-200.0,0.00010959,2]
[423003221,1779740790000,-148.62456566,0.00011009,7]
[423003222,1779740940000,1000.0,0.00028081,120]
[423003245,1779741032000,-166.66,0.00013123,2]
[423003252,1779741032000,-480.31542289,0.00013303,2]
[423003253,1779741032000,-500.0,0.00013303,2]
[423003246,1779741032000,-150.0,0.00013303,2]
[423003251,1779741032000,-185.40806489,0.00013303,2]
[423003250,1779741032000,-500.0,0.00013303,2]
[423003244,1779741032000,-900.0,0.000129,4]
[423003243,1779741032000,-1500.0,0.000129,4]
[423003249,1779741032000,-500.0,0.00013303,2]
[423003239,1779741032000,-1200.0,0.00012841,2]
[423003238,1779741032000,-158.3,0.00012812,2]
[423003248,1779741032000,-178.92929386,0.00013303,2]
[423003234,1779741032000,-311.43139196,0.000125,2]
[423003235,1779741032000,-273.19,0.00012701,2]
[423003241,1779741032000,-300.0,0.00012898,2]
[423003236,1779741032000,-700.0,0.000128,4]
[423003242,1779741032000,-300.0,0.00012898,2]
[423003231,1779741032000,-2000.0,0.00012328,2]
[423003232,1779741032000,-208.87966228,0.0001235,2]
[423003233,1779741032000,-500.0,0.00012438,2]
[423003230,1779741032000,-198.35,0.00012296,2]
[423003228,1779741032000,-3.37543434,0.00011009,7]
[423003229,1779741032000,-500.0,0.00012157,2]
[423003237,1779741032000,-400.0,0.000128,4]
[423003254,1779741032000,-482.24121943,0.00013303,2]
[423003240,1779741032000,-230.62683816,0.00012863,2]
[423003256,1779741032000,-500.0,0.00013303,2]
[423003247,1779741032000,-202.29321259,0.00013303,2]